Workbook

Sheet 草案封面
A3: 陆丰市2022年预算调整草案
A5: 编制单位：陆丰市财政局
A6: 编制时间：二○二二年十二月

Sheet 一般公共预算调整表
A1: 陆丰市2022年一般公共预算调整表（草案）
A2: 附表1 | J2: 单位：万元 | K2: 单位：万元
A3: 收 入 | B3: 年初预算数 | C3: 调整数 | D3: 调整后预算数 | E3: 增加额 | F3: 增长% | G3: 支 出 | H3: 年初预算数 | I3: 调整数 | J3: 调整后预算数 | K3: 增加额 | L3: 增长%
A5: 一、一般公共预算收入 | B5: =B6+B7 -> 113975 | C5: =C6+C7 -> 0 | D5: 113975 | E5: =D5-B5 -> 0 | F5: =E5/B5*100 -> 0.0 | G5: 一、一般公共预算支出 | H5: =H6+H7 -> 915704 | J5: =J6+J7 -> 915704
A6: （一）税收收入 | B6: 62550 | C6: -18775 | D6: =B6+C6 -> 43775 | G6: （一）本级公共预算支出 | H6: 569697 | J6: 569697
A7: （二）非税收入 | B7: 51425 | C7: 18775 | D7: 70200 | G7: （二）上级追加及提前下达资金、结转支出资金 | H7: =346007 -> 346007 | J7: =346007 -> 346007
A8: 二、上级补助收入 | B8: =SUM(B9,B17) -> 560055 | C8: =SUM(C9,C17) -> 70000 | D8: 630055 | G8: 二、上解上级支出 | H8: =SUM(H9:H11) -> 28878 | J8: =SUM(J9:J11) -> 28878
A9: （一）可支配财力补助 | B9: =SUM(B10:B16) -> 220055 | C9: =SUM(C10:C16) -> 70000 | D9: 290055 | E9: =D9-B9 -> 70000 | F9: =E9/B9*100 -> 31.8 | G9: （一）上解省基数及专项借款 | H9: 25821 | J9: 25821
A10: 1、税收返还 | B10: 10181 | D10: 10181 | E10: 0 | G10: （二）上缴省临时救助借款
A11: 2、均衡性转移支付 | B11: 105063 | D11: 105063 | E11: 0 | F11: =E11/B11*100 -> 0.0 | G11: （三）上划法院、检察院经费基数 | H11: 3057 | J11: 3057
A12: 3、县级基本财力保障 | B12: 70541 | D12: 70541 | G12: 三、安排预算稳定调节基金 | H12: 1603 | J12: 1603
A13: 4、固定数据补助支出 | B13: 14349 | D13: 14349 | E13: 0 | F13: 0.0 | G13: 四、地方债券转货支出
A14: 5、企业事业单位划转补助收入（含工商质监） | B14: 4408 | D14: 4408 | E14: 0 | F14: 0.0 | G14: 五、地方债券还本支出 | H14: 1562 | J14: 1562
A15: 6、其他转移性收入（革命老区转移支付等） | B15: =15513 -> 15513 | D15: 15513 | E15: 0 | F15: 0.0
A16: 7、上级追加补助资金 | C16: 70000 | D16: 70000 | E16: 70000
A17: （二）不可支配财力补助（上级追加和提前下达资金） | B17: 340000 | D17: 340000
A18: 三、调入资金（基金收入等） | B18: =120000+2500 -> 122500 | C18: -122500 | D18: 0 | E18: =D18-B18 -> -122500
A19: 四、调入预算稳定调节基金 | B19: 3648 | D19: 3648
A20: 五、收回存量资金统筹收入 | B20: =B21+B22 -> 80000 | C20: =C21+C22 -> 40500 | D20: 120500
A21: 1、收回统筹存量资金 | B21: 30000 | C21: 40500 | D21: 70500
A22: 2、本年专项资金统筹 | B22: 50000 | D22: 50000
A23: 六、债务收入 | B23: =B24+B25 -> 41562 | C23: =C24+C25 -> 12000 | D23: 53562
A24: 1、地方政府债券转贷收入（含置换债券） | B24: 21562 | C24: 12000 | D24: 33562
A25: 2、上级临时救助借款 | B25: 20000 | D25: 20000
A26: 七、调剂使用上级补助 | D26: 0
A27: 八、上年结转收入 | B27: 26007 | D27: 26007
A28: 1、上年结转 | B28: 26007 | D28: 26007 | G28: 六、财政总支出 | H28: =H5+H8+H12+H14 -> 947747 | J28: =J5+J8+J12+J14 -> 947747
A29: 2、净结余 | D29: 0 | G29: 七、剔除上级追加后总支出 | H29: =H28-H7 -> 601740 | J29: =J28-J7 -> 601740
A30: 本级可安排财力合计 | B30: =B7+B9+B18+B19+B20+B26+B23+B29 -> 519190 | C30: =C5+C9+C18+C19+C20+C26+C23+C29 -> 0 | D30: =D5+D9+D18+D19+D20+D26+D23+D29 -> 581740 | E30: =E5+#REF!+E9+#REF! ->  | F30: =E30/B30*100 ->  | G30: 八、年终结余
A31: 加：不可支配财力补助 | B31: 340000 | D31: 340000 | G31: 其中：结转下年支出
A32: 上年结转 | B32: 26007 | D32: 26007 | G32: 净结余
A33: 合 计 | B33: =B30+B31+B32 -> 885197 | C33: =C30+C31+C32 -> 0 | D33: =D30+D31+D32 -> 947747 | G33: 合 计 | H33: =H28+H30 -> 947747 | J33: =J28+J30 -> 947747 | K33: =#REF!+K30 ->  | L33: =#REF!+L30 -> 
A142: 重大公共卫生项目 | G142: 376 | M142: 新生儿缺陷防控，防控中心、艾滋病等防治经费
M148: 四术经费、流动人口计生经费、考核、孕前检查等
G175: 1000

Sheet 政府性基金调整表
A1: 陆丰市2022年政府性基金预算调整表（草案）
A2: 附表2 | I2: 单位：万元
A3: 收入项目 | B3: 年初预算数 | C3: 调整数 | D3: 调整后预算数 | F3: 年初预算数 | G3: 调整数 | I3: 调整后预算数
E4: 支出项目
G5: 追加（减）安排 | H5: 债券资金
A6: 一、基金预算收入 | B6: =SUM(B7:B24) -> 270,200 | C6: =SUM(C7:C23) -> -194,850 | D6: 75,350 | E6: 一、基金预算支出 | F6: =SUM(F7:F26) -> 351,009 | G6: =SUM(G7:G26) -> -74,850 | H6: 50,000 | I6: 326,159
A7: 1、国家电影事业发展专项资金收入 | D7: =B7+C7 -> 0 | E7: 1、国家电影事业发展专项资金相关支出 | F7: 3 | I7: 3
A8: 2、大中型水库移民后期扶持基金收入 | D8: =B8+C8 -> 0 | E8: 2、大中型水库移民后期扶持基金支出 | I8: =F8+G8+H8 -> 0
A9: 3、小型水库移民扶助基金收入 | D9: 0 | E9: 3、小型水库移民扶助基金相关支出 | I9: =F9+G9+H9 -> 0
A10: 4、国有土地使用权出让收入 | B10: 260,050 | C10: -191,050 | D10: =B10+C10 -> 69,000 | E10: 4、政府住房基金相关支出 | I10: 0
A11: 5、城市公用事业附加收入 | D11: =B11+C11 -> 0 | E11: 5、国有土地使用权出让相关支出 | F11: 121,812 | G11: =-95859+809+25200 -> -69,850 | I11: 51,962
A12: 6、国有土地收益基金收入 | D12: 0 | E12: 6、城市公用事业附加相关支出 | F12: 0 | I12: 0
A13: 7、农业土地开发资金收入 | D13: 0 | E13: 7、国有土地收益基金相关支出 | I13: 0
A14: 8、新增建设用地土地有偿使用费收入 | D14: 0 | E14: 8、农业土地开发资金相关支出 | I14: 0
A15: 9、城市基础设施配套费收入 | B15: 4,000 | C15: -500 | D15: 3,500 | E15: 9、新增建设用地有偿使用费支出 | I15: 0
A16: 10、污水处理费收入 | B16: 4,000 | C16: -2,300 | D16: 1,700 | E16: 10、城市基础设施配套费相关支出 | F16: 4,000 | G16: -4,000 | I16: 0
A17: 11、大中型水库库区基金收入 | D17: 0 | E17: 11、大中型水库库区基金相关支出 | I17: 0
A18: 12、港口建设费收入 | D18: 0 | E18: 12、港口建设费相关支出 | I18: 0
A19: 14、散装水泥专项资金收入 | D19: 0 | E19: 13、无线电频率占用费安排的支出 | I19: 0
A20: 15、新型墙体材料专项基金收入 | D20: 0 | E20: 14、散装水泥专项资金相关支出 | I20: 0
A21: 16、旅游发展基金收入 | B21: 0 | D21: 0 | E21: 15、新型墙体材料专项基金相关支出 | I21: 0
A22: 17、彩票公益金收入 | B22: 1,150 | D22: 1,150 | E22: 16、彩票公益金相关支出 | F22: 1,194 | I22: 1,194
A23: 18、其他政府性基金收入 | B23: 1,000 | C23: -1,000 | D23: 0 | E23: 17、污水处理费相关支出 | F23: 4,000 | G23: -1,000 | I23: 3,000
E24: 18、商业服务业等支出 | I24: 0
E25: 19、债务付息支出 | F25: 20,000 | I25: 20,000
E26: 20、其他政府性基金相关支出 | F26: 200,000 | H26: 50,000 | I26: 250,000
D28: 0 | E28: 二、上解支出 | I28: =F28+G28+H28 -> 0
A29: 二、地方专项债券 | B29: 225,800 | C29: 50,000 | D29: 275,800 | E29: 三、专项债券还本支出 | F29: 25,800 | I29: =F29+G29+H29 -> 25,800
A30: 三、基金补助收入 | B30: 47 | D30: 47 | E30: 四、政府性基金调出资金 | F30: 120,000 | G30: -120,000 | I30: =F30+G30+H30 -> 0
A31: 四、上年结转收入 | B31: 762 | D31: 762 | E31: 五、结转下年支出 | I31: =F31+G31+H31 -> 0
A32: 基 金 收 入 总 计 | B32: =B6+B29+B30+B31 -> 496,809 | C32: =C6++C29+C30+C31 -> -144,850 | D32: =D6++D29+D30+D31 -> 351,959 | E32: 基 金 支 出 总 计 | F32: =F6+F29+F30 -> 496,809 | G32: =G6+G29+G30 -> -194,850 | H32: 50,000 | I32: 351,959

Sheet 国有资本经营预算调整表
A1: 陆丰市2022年国有资本经营预算调整表（草案）
A3: 附表3 | H3: 单位：万元
A4: 收入项目 | B4: 年初预算数 | C4: 调整数 | D4: 调整后预算数 | E4: 支出项目 | F4: 年初预算数 | G4: 调整数 | H4: 调整后预算数
A6: 一、利润收入 | B6: 500 | D6: =B6+C6 -> 500 | E6: 一、国有资本经营预算支出 | F6: =SUM(F7:F10) -> 1,014 | G6: 179 | H6: =F6+G6 -> 1,193
A7: 二、股利、股息收入 | D7: =B7+C7 -> 0 | E7: 1、公益性设施投资补助支出 | H7: =F7+G7 -> 0
A8: 三、产权转让收入 | D8: 0 | E8: 2、支持科技进步支出 | H8: 0
A9: 1、汽运公司股权出让收入 | D9: 0 | E9: 3、改革成本支出 | F9: 200 | H9: 200
A10: 2、新华书店股权出让收入 | D10: 0 | E10: 4、其他国有资本经营预算支出 | F10: 814 | G10: 179 | H10: 993
A11: 四、清算收入 | D11: 0 | E11: 二、转移性支出 | F11: 2,500 | G11: -2,500 | H11: 0
A12: 五、其他国有资本经营收入 | B12: 3,000 | C12: =-2736+362 -> -2,374 | D12: 626 | E12: 1、国有资本经营预算转移支付 | H12: 0
A13: 六、国有资本经营预算转移支付收入 | D13: 0 | E13: 2、调出资金 | F13: 2,500 | G13: -2,500 | H13: 0
D14: 0 | H14: 0
D15: 0 | H15: 0
A16: 本年收入合计 | B16: 3,500 | C16: =-2736+362 -> -2,374 | D16: 1,126 | E16: 本年支出合计 | F16: =F6+F11 -> 3,514 | G16: =-2500+100+76+3 -> -2,321 | H16: 1,193
A17: 上年结转 | B17: 14 | C17: 156 | D17: 170 | E17: 结转下年 | G17: 103 | H17: 103
A18: 其中：净结余 | B18: 0 | D18: 0 | E18: 其中：净结余 | G18: 103 | H18: 103
A19: 项目结转 | E19: 项目结转
A21: 收入总计 | B21: =B16+B17 -> 3,514 | C21: =C16+C17 -> -2,218 | D21: =D16+D17 -> 1,296 | E21: 支出总计 | F21: =F16+F17 -> 3,514 | G21: =G16+G17 -> -2,218 | H21: =H16+H17 -> 1,296

Sheet 政府性债券安排表
A1: 陆丰市2022年新增政府性债券资金安排表
A2: 附表4 | K2: 单位：万元
A3: 序号 | B3: 新增债券使用项目 | C3: 债券类型 | D3: 管理使用单位 | E3: 主管部门 | F3: 4月发行 | G3: 6月发行 | H3: 8月发行 | I3: 10月发行 | J3: 债券安排 | K3: 备注
A5: 1 | B5: 陆丰市进站路和新324国道升级改造工程 | C5: 一般债券 | D5: 陆丰市交通运输局 | E5: 陆丰市交通运输局 | G5: 10,000 | J5: 11,000
A6: 2 | B6: 陆丰市甲港公路配套工程 | C6: 一般债券 | D6: 陆丰市交通运输局 | E6: 陆丰市交通运输局 | G6: 5,000 | J6: 7,000
A7: 3 | B7: 国道228线甲子至南塘段改建工程 | C7: 一般债券 | D7: 陆丰市交通运输局 | E7: 陆丰市交通运输局 | H7: 4,000 | J7: 11,000
A8: 4 | B8: 陆丰市新响等9宗小型水库除险加固工程及运行管护 | C8: 一般债券 | D8: 陆丰市水利工程建设管理中心 | E8: 陆丰市水务局 | J8: 3,000
A9: 5 | B9: 陆丰市乡村振兴人居环境提升建设工程 | C9: 专项债券 | D9: 陆丰市农业农村局 | E9: 陆丰市农业农村局 | F9: 2,000 | H9: 3,000 | J9: 40,000
A10: 6 | B10: 陆丰市螺河水闸重建工程 | C10: 专项债券 | D10: 陆丰市水利工程建设管理中心 | E10: 陆丰市水务局 | F10: 2,000 | H10: 3,500 | I10: 2,500 | J10: 6,000
A11: 7 | B11: 陆丰市螺河至碣石引水工程 | C11: 专项债券 | D11: 陆丰市城乡供水有限公司 | E11: 陆丰市水务局 | F11: 3,000 | H11: 5,500 | I11: 3,500 | J11: 15,000
A12: 8 | B12: 陆丰市人民医院传染病区建设项目 | C12: 专项债券 | D12: 陆丰市人民医院 | E12: 陆丰市卫生健康局 | G12: 5,000 | J12: 4,000
A13: 9 | B13: 陆丰市中医医院医疗工程建设项目 | C13: 专项债券 | D13: 陆丰市中医医院 | E13: 陆丰市卫生健康局 | J13: 2,000
A14: 10 | B14: 陆丰市第四人民医院（陆丰市精神病医院）建设项目 | C14: 专项债券 | D14: 陆丰市慢性病防治站 | E14: 陆丰市卫生健康局 | J14: 5,000
A15: 11 | B15: 陆丰市高级技工学校新建项目 | C15: 专项债券 | D15: 陆丰市人力资源和社会保障局 | E15: 陆丰市人力资源和社会保障局 | J15: 15,000
A16: 12 | B16: 陆丰市颐养园 | C16: 专项债券 | D16: 陆丰市民政局 | E16: 陆丰市民政局 | J16: 2,000
A17: 13 | B17: 陆丰市龙山中学新校 区 | C17: 专项债券 | D17: 陆丰市教育局 | E17: 陆丰市教育局 | J17: 8,000
A18: 14 | B18: 陆丰市林启恩纪念中学现代化综合大楼及学校配套设施提质升级工程 | C18: 专项债券 | D18: 陆丰市林启恩纪念中学 | E18: 陆丰市教育局 | J18: 5,600
A19: 15 | B19: 陆丰市三甲地区工业园区基础设施项 目 | C19: 专项债券 | D19: 陆丰市市政建设投资有限公司 | E19: 陆丰市甲东镇人民政府 | J19: 5,000
A20: 16 | B20: 星都经济开发区产业园区基础设施配套工程 | C20: 专项债券 | D20: 广东汕尾星都经济开发区 | E20: 广东汕尾星都经济开发区管委会 | J20: 5,000
A21: 17 | B21: 陆丰市东溪河（陆丰段）流域综合整治工程 | C21: 专项债券 | D21: 陆丰市水利工程建设管理中心 | E21: 陆丰市水务局 | J21: 5,000
A22: 18 | B22: 陆丰市乌坎河流域河道综合治理工程 | C22: 专项债券 | D22: 陆丰市水利工程建设管理中心 | E22: 陆丰市水务局 | J22: 8,000
A23: 19 | B23: 陆丰市碣石海工基地（二期）项目 | C23: 专项债券 | D23: 陆丰市碣石临港工业园开发有限公司 | E23: 陆丰市科技工业和信息化局 | J23: 13,000
A24: 20 | B24: 陆丰市城东街道至陂洋区域停车设施及道路升级改造工程 | C24: 专项债券 | D24: 陆丰市公路事务中心 | E24: 陆丰市公路事务中心 | J24: 10,000
A25: 21 | B25: 陆丰东海经济开发区产业园区二期基础设施配套建设项目 | C25: 专项债券 | D25: 陆丰市东海经济开发区 | E25: 陆丰市东海经济开发区 | J25: 8,000
A26: 22 | B26: 陆丰市高质量推进农村生活污水治理项目 | C26: 专项债券 | D26: 陆丰市住房和城乡建设局 | E26: 陆丰市住房和城乡建设局 | J26: 22,000
A27: 23 | B27: 陆丰市东海镇老旧小区综合改造项目 | C27: 专项债券 | D27: 陆丰市东海镇人民政府 | E27: 陆丰市东海镇人民政府 | J27: 5,000
A28: 24 | B28: 陆丰市乌坎滨海旅游环境综合整治项目 | C28: 专项债券 | D28: 陆丰市东海镇人民政府 | E28: 陆丰市东海镇人民政府 | G28: 5,000 | J28: 5,000
A29: 25 | B29: 陆丰市龙潭灌区续建配套与节水改造工程 | C29: 专项债券 | D29: 陆丰市龙潭灌区管理局 | E29: 陆丰市水务局 | G29: 5,000 | H29: 15,000 | I29: 5,000 | J29: 5,000
A30: 26 | B30: 陆丰市医疗卫生整体配套提升项目 | C30: 专项债券 | D30: 陆丰市卫生健康局 | E30: 陆丰市卫生健康局 | G30: 2,000 | H30: 4,000 | I30: 1,500 | J30: 6,000
A31: 27 | B31: 陆丰市冷链物资仓库新建项目 | C31: 专项债券 | D31: 陆丰市粮食和物资储备局 | E31: 陆丰市发展和改革局 | G31: 2,000 | H31: 15,000 | I31: 8,000 | J31: 5,000
A32: 28 | B32: 陆丰市职业技术学校等3所职校实训配套设施及碣石新安职业技术学校教学楼建设工程项目 | C32: 专项债券 | D32: 陆丰市教育局 | E32: 陆丰市教育局 | H32: 2,500 | I32: 2,500 | J32: 5,500
A33: 29 | B33: 陆丰市行政新区幼儿园建设项目 | C33: 专项债券 | D33: 陆丰市教育局 | E33: 陆丰市教育局 | H33: 7,500 | I33: 7,500 | J33: 5,000
A34: 30 | B34: 陆丰市第二职业技术学校新建产教融合大楼、学生宿舍楼、大礼堂（兼容艺术楼）项目 | C34: 专项债券 | D34: 陆丰市教育局 | E34: 陆丰市教育局 | H34: 15,000 | I34: 10,000 | J34: 6,000
A35: 31 | B35: 陆丰市八万河水环境综合整治工程 | C35: 专项债券 | D35: 八万镇人民政府 | E35: 陆丰市水务局 | H35: 3,400 | I35: 1,600 | J35: 5,000
A36: 32 | B36: 陆丰市第一批中小河流治理工程 | C36: 专项债券 | D36: 陆丰市水利工程建设管理中心 | E36: 陆丰市水务局 | I36: 2,000 | J36: 10,400
A37: 33 | B37: 陆丰市螺河（陆丰段）流域水环境综合整治工程 | C37: 专项债券 | D37: 陆丰市水利工程建设管理中心 | E37: 陆丰市水务局 | I37: 20,000 | J37: 8,500
A38: 34 | B38: 陆丰市职业艺体特色教育提质升级项目 | C38: 专项债券 | D38: 陆丰市教育局 | E38: 陆丰市教育局 | I38: 20,000 | J38: 5,000
A39: 合 计 | F39: =SUM(F5:F38) -> 7,000 | G39: =SUM(G5:G38) -> 34,000 | H39: =SUM(H5:H38) -> 78,400 | I39: =SUM(I5:I38) -> 84,100 | J39: =SUM(J5:J38) -> 282,000
